bitfinex/quotes_ETHUSD_20220202
["timestamp","ask_amount","ask_price","bid_price","bid_amount"]
[1643821996559,1.05618012,2686.6,2685.9,0.90946787]
[1643821996760,0.2258637,2686.5,2685.7,0.186]
[1643821996960,0.2258637,2686.5,2686.4,0.00494956]
[1643821997404,3.4258637,2686.5,2686.4,0.00494956]
[1643821997807,3.4258637,2686.5,2685.8,0.67223814]
[1643821998105,0.2258637,2686.4,2686.3,0.0049496]
[1643821998705,2.671326,2686.4,2686.3,0.0049496]
[1643821998905,2.671326,2686.4,2685.8,0.67223814]
[1643821999104,0.17952311,2685.7,2685.6,0.01246542]
[1643821999307,0.17952311,2685.7,2685.6,1.31668243]
[1643821999505,2.69108907,2686.4,2685.4,1.31668243]
[1643821999705,0.22603312,2686.3,2685.5,0.186]
[1643821999905,2.43396543,2686.4,2685.6,1.31668243]
[1643822000105,0.86481837,2686.1,2685.6,1.31668243]
[1643822000310,0.86481837,2686.1,2685.7,1.31668243]
[1643822000506,0.86481837,2686.1,2685.8,0.00494732]
[1643822000708,0.17720325,2686.0,2685.8,0.00494732]
[1643822001370,0.17720325,2686.0,2685.5,0.186]
[1643822001557,0.17720325,2686.0,2685.2,0.13819997]
[1643822001759,0.17720325,2686.0,2685.8,0.00494732]
[1643822002558,0.17720325,2686.0,2685.5,0.81098332]
[1643822002760,2.61148376,2686.0,2685.8,0.00495402]
[1643822002962,0.47615356,2686.0,2685.8,0.00495402]
[1643822003162,0.17615356,2686.0,2685.8,0.00495402]
[1643822003360,0.26299447,2685.9,2685.8,0.00495402]
[1643822003758,0.26299447,2685.9,2685.1,0.186]
[1643822003759,1.16368249,2685.9,2685.1,0.91962187]
[1643822003968,1.16368249,2685.9,2685.7,0.00495406]
[1643822003969,1.20068802,2685.9,2685.7,0.00495406]
[1643822004161,0.3,2685.9,2685.7,0.00495406]
[1643822004360,0.47615356,2686.0,2685.7,0.00495406]
[1643822004561,0.26313211,2685.9,2685.7,0.00495406]
[1643822004822,0.26313211,2685.9,2685.1,0.91962187]
[1643822004823,5.65,2685.7,2684.0,1.86268]
[1643822005026,5.65,2685.7,2683.8,0.42549385]
[1643822005027,10.65,2685.3,2683.8,0.42549385]
[1643822005224,10.65,2685.3,2683.9,1.25873806]
[1643822005225,0.01206614,2685.0,2683.9,1.25873806]
[1643822005423,0.01206614,2685.0,2683.6,1.0803518]
[1643822005424,5.0,2684.8,2683.8,1.25873806]
[1643822005633,0.26313211,2684.7,2683.9,1.25873806]
[1643822005824,0.3,2684.8,2684.0,3.50368818]
[1643822006024,10.3989,2685.2,2683.6,1.0803518]
[1643822006025,0.52142325,2684.7,2684.1,1.25873806]
[1643822006226,10.6989,2685.2,2684.2,1.25873806]
[1643822006422,10.6989,2685.2,2684.3,0.1862]
[1643822006423,0.53699002,2685.1,2684.3,0.1862]
[1643822006623,0.53699002,2685.1,2683.7,0.1862]
[1643822006824,0.16963457,2684.8,2684.2,0.79603775]
[1643822007024,10.6989,2685.2,2684.2,0.79603775]
[1643822007025,11.42784462,2685.2,2684.2,0.79603775]
[1643822007226,11.42784462,2685.2,2684.3,1.0112688]
[1643822007227,0.53653022,2685.1,2684.3,1.0112688]
[1643822007626,0.53653022,2685.1,2684.3,1.5482688]
[1643822007827,9.1709,2685.2,2684.6,0.00513957]
[1643822008028,5.229,2685.2,2684.6,0.00513957]
[1643822008560,5.229,2685.2,2684.3,0.537]
[1643822008760,5.229,2685.2,2684.4,1.01122746]
[1643822008961,5.229,2685.2,2684.5,0.18521483]
[1643822008962,0.14269754,2685.1,2684.5,0.18521483]
[1643822009359,0.18831157,2684.6,2684.4,0.1862]
[1643822009561,0.18831157,2684.6,2684.5,1.01191967]
[1643822009761,0.18831157,2684.6,2684.5,0.1870363]
[1643822009963,5.529,2685.2,2684.5,0.1870363]
[1643822010163,5.529,2685.2,2684.5,0.0008363]
[1643822010462,5.529,2685.2,2684.6,0.1862]
[1643822010662,5.529,2685.2,2684.5,0.1870363]
[1643822010868,5.529,2685.2,2684.5,0.0008363]
[1643822011264,5.529,2685.2,2684.8,0.00510105]
[1643822011667,0.72921551,2685.1,2684.8,0.00510105]
[1643822011864,0.19356436,2685.1,2684.8,0.00510105]
[1643822012313,0.19356436,2685.1,2684.5,0.0008363]
[1643822012314,0.5354939,2685.0,2684.5,0.0008363]
[1643822012714,0.8354939,2685.0,2684.8,0.00224585]
[1643822012916,0.3,2685.0,2684.8,0.00224585]
[1643822013115,4.90163373,2684.9,2684.8,0.00224585]
[1643822013623,0.3,2684.9,2684.8,0.00224585]
[1643822013817,0.67976436,2685.1,2684.8,0.00493235]
[1643822014216,0.67976436,2685.1,2684.9,0.00084741]
[1643822014416,0.49356436,2685.1,2684.9,0.00084741]
[1643822016260,0.1862,2685.0,2684.9,0.00084741]
[1643822016458,2.98183884,2685.0,2684.9,0.00084741]
[1643822016856,3.98183884,2685.0,2684.9,0.00084741]
[1643822018459,1.72183884,2685.0,2684.9,0.00084741]
[1643822018666,1.1862,2685.0,2684.9,0.00084741]
[1643822018863,0.1862,2685.0,2684.9,0.00084741]
[1643822019260,0.1862,2685.0,2684.8,0.00495851]
[1643822019560,0.1862,2685.0,2684.7,0.00084741]
[1643822019803,0.1862,2685.0,2684.8,0.00495851]
[1643822019804,36.79369409,2684.9,2684.8,0.00495851]
[1643822020207,37.09369409,2684.9,2684.8,0.00495851]
[1643822020810,37.09369409,2684.9,2684.7,0.00084741]
[1643822021006,0.82811581,2684.8,2684.7,0.00580601]
[1643822021210,5.37811581,2684.8,2684.7,0.00580601]
[1643822022011,6.37811581,2684.8,2684.7,0.00084741]
[1643822022611,5.37811581,2684.8,2684.7,0.00084741]
[1643822022811,6.37811581,2684.8,2684.7,0.00084741]
[1643822023412,6.37811581,2684.8,2684.6,9.608e-05]
[1643822023413,7.91,2684.7,2684.6,9.608e-05]
[1643822023663,17.88740885,2684.7,2684.6,9.608e-05]
[1643822023864,18.30060325,2684.7,2684.6,9.608e-05]
[1643822024065,2.26,2684.5,2683.8,0.00239532]
[1643822024262,3.1920811,2684.1,2683.8,0.00239532]
[1643822024461,0.71001042,2683.9,2683.6,1.0803518]
[1643822025261,2.26,2683.9,2683.6,5.18e-05]
[1643822025463,8.447,2683.8,2683.2,0.1862]
[1643822025663,0.3,2683.5,2683.3,0.00239532]
[1643822025865,40.96082943,2683.4,2683.3,0.00239532]
[1643822026161,40.96082943,2683.4,2683.2,0.02008527]
[1643822026665,40.96082943,2683.4,2682.6,0.1862]
[1643822026866,40.96082943,2683.4,2682.6,0.00239532]
[1643822026867,2.26,2683.2,2682.6,0.00239532]
[1643822027067,3.7071,2683.3,2682.6,0.00239532]
[1643822027309,6.1212,2683.7,2682.7,0.19885982]
[1643822027310,0.18444806,2683.2,2682.7,0.19885982]
[1643822028109,0.18444806,2683.2,2682.8,0.67774733]
[1643822028309,0.18444806,2683.2,2682.9,0.1862]
[1643822028508,6.3076,2683.8,2682.9,0.1862]
[1643822028509,5.098,2683.8,2682.9,0.1862]
[1643822028711,5.501,2684.4,2682.9,0.1862]
[1643822028712,1.1503,2684.8,2683.0,2.70697622]
[1643822028913,4.9669,2684.9,2683.3,0.01285084]
[1643822029112,0.55621201,2684.8,2683.3,0.53939532]
[1643822029320,6.1252,2684.7,2683.4,0.1862]
[1643822029512,0.16640684,2683.7,2683.4,0.1862]
[1643822030714,0.16640684,2683.7,2683.5,0.76537451]
[1643822030920,0.16640684,2683.7,2683.6,4.0862]
[1643822031359,0.00535498,2684.3,2683.6,4.0862]
[1643822031563,9.8204,2684.7,2683.6,4.08859532]
[1643822031759,0.00535508,2684.3,2683.6,4.08859532]
[1643822032760,10.0066,2684.7,2683.6,4.08859532]
[1643822032960,0.00535541,2684.3,2683.8,0.00535644]
[1643822033362,0.16123148,2684.2,2683.8,0.00535644]
[1643822033960,0.16123148,2684.2,2683.7,0.00239532]
[1643822034161,0.16123148,2684.2,2683.9,0.00477591]
[1643822035314,0.16123148,2684.2,2683.5,0.00239532]
[1643822035513,0.16123148,2684.2,2683.9,0.00477587]
[1643822036315,0.11123148,2684.2,2683.6,0.00239532]
[1643822036516,0.30477513,2684.3,2683.6,0.00239532]
[1643822036716,0.00477513,2684.3,2683.4,0.03113993]
[1643822036918,0.00477513,2684.3,2683.5,0.1862]
[1643822037120,0.00477513,2684.3,2683.6,0.00239532]
[1643822037518,0.95448216,2684.5,2683.6,0.00239532]
[1643822037717,0.14956663,2684.2,2683.6,0.00239532]
[1643822038017,0.14956663,2684.2,2683.8,0.00487638]
[1643822039055,0.18347843,2683.7,2683.6,0.00239532]
[1643822039259,0.18347843,2683.7,2683.5,0.19834687]
[1643822039857,0.18347843,2683.7,2683.5,0.1862]
[1643822040258,0.0024755,2684.3,2683.5,0.1862]
[1643822040460,0.0024755,2684.3,2683.6,0.00239532]
[1643822040658,0.0024755,2684.3,2683.6,0.92462975]
[1643822041158,0.1862,2684.6,2683.6,0.92462975]
[1643822041359,0.00493655,2684.3,2683.8,0.00493751]
[1643822041758,0.17440808,2684.2,2683.8,0.00493751]
[1643822041959,0.17440808,2684.2,2683.8,0.00733283]
[1643822042418,0.17440808,2684.2,2683.8,0.00239532]
[1643822042617,0.17440808,2684.2,2683.9,0.00519683]
[1643822043614,0.17440808,2684.2,2683.8,0.83838242]
[1643822043615,0.17440808,2684.2,2683.8,1.37777774]
[1643822043816,0.17440808,2684.2,2683.9,0.19139678]
[1643822044116,0.17440808,2684.2,2683.9,0.00519678]
[1643822044618,0.00519597,2684.3,2683.9,2.26060956]
[1643822044823,0.1862,2685.1,2684.0,1.65796127]
[1643822045016,0.1862,2685.1,2684.1,0.92268691]
[1643822045017,0.00519597,2684.3,2684.1,0.92268691]
[1643822045416,2.25541278,2685.1,2684.0,0.18859532]
[1643822045417,4.52785783,2685.1,2684.0,0.18859532]
[1643822045618,4.52785783,2685.1,2683.9,0.00519678]
[1643822045619,0.76486424,2684.6,2683.9,0.00519678]
[1643822045816,0.3,2684.6,2683.9,0.00519678]
[1643822046061,0.62527564,2684.5,2683.8,0.00239532]
[1643822046261,0.92527564,2684.5,2683.8,0.92411594]
[1643822046564,0.92527564,2684.5,2683.7,0.00080975]
[1643822046565,0.3,2684.5,2683.7,0.00080975]
[1643822046761,0.92529963,2684.4,2683.7,0.00080975]
[1643822046961,0.62529963,2684.3,2683.7,0.00080975]
[1643822047161,0.15968858,2684.2,2683.7,0.00080975]
[1643822047364,2.26,2684.8,2683.7,0.00080975]
[1643822047563,4.64939999,2685.2,2683.7,2.15080975]
[1643822047564,0.16668175,2684.0,2683.7,2.15080975]
[1643822047765,0.16668175,2684.0,2683.8,0.92672496]
[1643822048063,0.16668175,2684.0,2683.8,0.00239532]
[1643822048262,0.16668175,2684.0,2683.7,0.00080975]
[1643822049064,0.16668175,2684.0,2683.5,0.00239532]
[1643822049667,0.62728376,2683.9,2683.5,0.00239532]
[1643822049913,0.62728376,2683.9,2683.6,0.00536259]
[1643822050808,0.92728376,2683.9,2683.4,0.00080648]
[1643822051009,0.3,2683.9,2683.6,0.00536259]
[1643822051406,0.16668175,2684.0,2683.6,0.00536259]
[1643822051607,0.6272962,2683.9,2683.6,0.00536259]
[1643822051808,2.45492459,2683.8,2683.6,0.00536259]
[1643822052008,0.62775704,2683.7,2683.4,0.00080648]
[1643822052208,0.3,2683.9,2683.7,0.00536255]
[1643822052408,0.62775817,2683.8,2683.7,0.00536255]
[1643822053209,0.62775817,2683.8,2683.4,0.00080648]
[1643822053408,0.62775817,2683.8,2683.6,0.00536259]
[1643822054064,0.62775817,2683.8,2683.7,0.00080975]
[1643822057612,0.62775817,2683.9,2683.7,0.00080975]
[1643822059212,0.62775817,2683.9,2683.4,0.00082755]
[1643822059415,5.39885943,2683.8,2683.7,0.00536255]
[1643822059614,6.0266176,2683.8,2683.7,0.00536255]
[1643822060015,7.10638327,2683.8,2683.7,0.00536255]
[1643822060418,0.67663875,2683.7,2683.4,0.00082755]
[1643822060616,3.27409055,2683.6,2683.4,0.00082755]
[1643822060816,0.62775817,2683.5,2683.4,0.00082755]
[1643822061464,3.06261798,2683.5,2683.4,0.00082755]
[1643822062060,0.62775817,2683.5,2683.4,0.00082755]
[1643822064060,0.62775817,2683.5,2683.3,0.00504293]
[1643822064460,4.40166363,2683.4,2683.3,0.00504293]
[1643822064660,5.0294218,2683.4,2683.3,0.00504293]
[1643822065107,7.62507918,2683.4,2683.2,0.00080538]
[1643822065509,4.41041606,2683.3,2683.2,0.00109434]
[1643822065908,6.9998072,2683.3,2683.2,0.00109434]
[1643822066308,6.9998072,2683.3,2683.0,0.00239532]
[1643822066508,0.62775817,2683.2,2683.0,0.00239532]
[1643822066709,2.44595928,2683.1,2682.6,0.86464897]
[1643822066909,2.44595928,2683.1,2682.7,0.86464897]
[1643822066910,0.62775817,2683.0,2682.7,0.86464897]
[1643822067110,0.62775817,2683.0,2682.4,0.00239532]
[1643822067308,0.62775817,2683.0,2682.4,0.87239812]
[1643822067309,0.19256718,2682.9,2682.4,0.87239812]
[1643822067511,2.66142152,2682.9,2682.5,0.8700028]
[1643822067710,2.66142152,2682.9,2682.6,0.8700028]
[1643822067711,0.68573418,2682.8,2682.6,0.8700028]
[1643822067909,0.68573418,2682.8,2682.2,0.00239532]
[1643822068858,39.2175476,2682.7,2682.2,0.00239532]
[1643822069057,39.2175476,2682.7,2682.4,0.00247241]
[1643822069960,39.2175476,2682.7,2682.2,0.00239532]
[1643822069961,36.79369409,2682.7,2682.3,0.8696356]
[1643822070160,36.79369409,2682.7,2682.4,0.8749993]
[1643822070360,36.79369409,2682.7,2682.4,0.0053637]
[1643822071160,36.79369409,2682.7,2682.2,0.00239532]
[1643822071460,36.79369409,2682.7,2682.2,0.87088242]
[1643822071461,0.19514499,2682.3,2682.2,0.87088242]
[1643822071664,0.19514499,2682.3,2682.2,3.3184871]
[1643822072613,9.065,2683.1,2682.2,3.3184871]
[1643822072817,42.03148026,2683.2,2682.2,3.3184871]
[1643822072818,4.11919997,2683.2,2682.3,0.87088242]
[1643822073019,0.71673985,2683.1,2682.4,0.8684871]
[1643822073215,4.11919997,2683.2,2682.5,0.8684871]
[1643822073415,4.11919997,2683.2,2682.6,0.8684871]
[1643822073619,0.1628653,2682.8,2682.6,0.1862]
[1643822073817,4.11919997,2683.2,2682.6,0.19123218]
[1643822074016,4.11919997,2683.2,2682.6,0.1936275]
[1643822074017,4.41919997,2683.2,2682.6,0.1936275]
[1643822074218,4.41919997,2683.2,2682.6,0.0074275]
[1643822074620,0.7165884,2683.1,2682.6,0.0074275]
[1643822074817,0.14326074,2682.9,2682.6,0.00239532]
[1643822075018,0.14326074,2682.9,2682.8,0.00503206]
[1643822075418,4.41919997,2683.2,2682.8,0.00503206]
[1643822075820,3.981,2683.2,2682.8,0.00503206]
[1643822076057,3.981,2683.2,2682.4,0.18859532]
[1643822076263,3.981,2683.2,2682.9,0.00503198]
[1643822076459,0.15162644,2683.1,2682.9,0.00503198]
[1643822077161,0.15162644,2683.1,2682.7,0.00239532]
[1643822077360,0.15162644,2683.1,2682.9,0.00495294]
[1643822077560,1.2275,2683.6,2682.9,0.70625781]
[1643822077760,0.71700115,2683.5,2682.9,0.70625781]
[1643822078361,3.18143223,2683.5,2682.9,0.00239532]
[1643822078560,0.71700115,2683.4,2683.1,0.00495279]
[1643822079363,0.87913525,2683.3,2683.1,0.00495279]
[1643822079566,0.87913525,2683.3,2682.8,0.00239532]
[1643822080011,0.1621341,2683.3,2683.1,0.00495284]
[1643822080213,4.50335095,2683.2,2683.1,0.00495284]
[1643822080610,4.80335095,2683.2,2683.1,0.00495284]
[1643822080810,4.80335095,2683.2,2682.5,0.00239532]
[1643822081010,0.71715095,2683.1,2682.6,0.00239532]
[1643822081212,0.71715095,2683.1,2683.0,0.00496437]
[1643822081611,0.71715095,2683.4,2683.0,0.00496437]
[1643822081811,0.3,2683.1,2683.0,0.00496437]
[1643822082011,1.01715095,2683.1,2682.4,0.00239532]
[1643822082212,0.71715095,2683.0,2682.6,0.01986106]
[1643822083012,0.17762944,2682.9,2682.6,0.01986106]
[1643822083212,0.17762944,2682.9,2682.4,0.00239532]
[1643822083411,0.17762944,2682.9,2682.4,0.84224991]
[1643822083667,5.6688,2683.6,2682.7,0.00496464]
[1643822083869,0.71345589,2683.5,2682.7,0.00496464]
[1643822084069,0.71345589,2683.5,2682.8,0.83971808]
[1643822084365,0.71345589,2683.5,2682.9,0.00239532]
[1643822084767,0.17813726,2683.1,2683.0,0.00496645]
[1643822085667,8.1850317,2683.7,2682.9,0.00239532]
[1643822085865,0.71718294,2683.6,2682.9,0.00496648]
[1643822086065,1.01718294,2683.6,2682.9,0.00496648]
[1643822086265,0.71718294,2683.5,2682.9,0.00496648]
[1643822086670,0.97324598,2683.4,2682.9,0.00496648]
[1643822086867,0.71718294,2683.3,2682.6,0.00239532]
[1643822087066,0.97324598,2683.4,2683.1,0.00496637]
[1643822087067,0.73629944,2683.2,2683.1,0.00496637]
[1643822087311,0.20066386,2683.4,2683.1,0.00496637]
[1643822087312,0.73629944,2683.3,2683.1,0.00496637]
[1643822087512,0.73629944,2683.2,2683.1,0.00496637]
[1643822088111,0.73629944,2683.2,2682.4,0.18859532]
[1643822088312,0.73629944,2683.1,2683.0,0.00496239]
[1643822088713,0.73629944,2683.2,2683.0,0.00496239]
[1643822088912,0.73629944,2683.1,2683.0,0.00496239]
[1643822089319,1.1342,2683.3,2683.0,0.00496239]
[1643822089320,0.73629944,2683.2,2683.0,0.00496239]
[1643822089513,0.73629944,2683.1,2683.0,0.00496243]
[1643822089712,0.73629944,2683.2,2683.0,0.00496243]
[1643822089916,1.1342,2683.3,2683.0,0.00496243]
[1643822089917,0.73629944,2683.1,2683.0,0.00496243]
[1643822090112,0.73629944,2683.2,2683.0,0.00496243]
[1643822090312,1.1342,2683.3,2682.6,0.0198527]
[1643822090313,0.73629944,2683.1,2682.6,0.0198527]
[1643822090512,0.15143837,2682.7,2682.5,0.00239532]
[1643822090712,1.1342,2683.3,2682.5,0.00239532]
[1643822090713,1.1342,2683.3,2682.9,0.00496247]
[1643822090914,0.73730168,2683.2,2682.9,0.00496247]
[1643822091562,0.73730168,2683.2,2682.5,0.00239532]
[1643822091867,0.73730168,2683.2,2682.9,0.00496305]
[1643822092061,0.92350168,2683.2,2682.9,0.00496305]
[1643822092261,0.91078852,2683.1,2682.9,0.00496305]
[1643822092462,0.73730168,2683.0,2682.9,0.00496305]
[1643822092862,0.73730168,2683.0,2682.4,0.89262803]
[1643822093063,0.73730168,2683.0,2682.9,0.00496309]
[1643822094264,0.73730168,2683.0,2682.1,2.29339808]
[1643822094265,0.73730168,2683.0,2682.1,0.00239532]
[1643822094469,0.73730168,2683.0,2682.8,0.00496313]
[1643822095619,0.73730168,2683.0,2682.8,0.00496309]
[1643822096012,0.73730168,2683.0,2682.9,0.81839496]
[1643822096813,0.73730168,2683.0,2682.8,0.00453005]
[1643822097017,0.73730168,2683.0,2682.9,0.81839496]
[1643822098016,3.96250327,2683.6,2682.9,3.66839496]
[1643822098017,0.73730168,2683.2,2682.9,3.66839496]
[1643822098215,3.96250327,2683.6,2683.0,3.96839496]
[1643822098216,0.73730168,2683.1,2683.0,3.96839496]
[1643822098415,42.57949736,2683.8,2683.0,3.96839496]
[1643822098416,1.14020928,2683.7,2683.0,3.96839496]
[1643822098670,0.74015453,2683.6,2683.1,3.24472544]
[1643822098867,0.74015453,2683.5,2683.2,1.35539496]
[1643822099068,0.74015453,2683.4,2683.3,1.00459496]
[1643822099368,0.1947725,2683.8,2683.3,4.79159496]
[1643822099571,0.74009412,2683.7,2683.4,0.81839496]
[1643822100472,0.74009412,2683.6,2683.4,0.81839496]
[1643822100771,3.6372,2683.9,2683.1,0.00693876]
[1643822100772,0.74009412,2683.5,2683.1,0.00693876]
[1643822101068,0.74009412,2683.4,2683.2,0.81779123]
[1643822101268,0.74009412,2683.3,2683.2,0.81779123]
[1643822101869,0.74009412,2683.3,2683.2,4.21779123]
[1643822102072,3.8234,2683.9,2683.2,4.21779123]
[1643822102309,0.74041865,2683.8,2683.3,0.81779123]
[1643822103512,0.16567339,2683.6,2683.3,0.81779123]
[1643822103711,0.74041865,2683.5,2683.3,0.81779123]
[1643822104210,0.74041865,2683.4,2683.3,0.81779123]
[1643822104411,0.74041865,2683.8,2683.3,0.81779123]
[1643822104613,3.6372,2683.9,2683.3,0.81779123]
[1643822104614,0.74041865,2683.7,2683.3,0.81779123]
[1643822104810,0.74041865,2683.6,2683.3,0.81779123]
[1643822105011,0.74041865,2683.5,2683.4,0.81779123]
[1643822105211,0.74041865,2683.6,2683.1,0.82472614]
[1643822105411,0.74041865,2683.5,2683.2,0.81779123]
[1643822105613,0.74041865,2683.6,2683.2,0.81779123]
[1643822105812,0.19488277,2683.7,2683.2,0.81779123]
[1643822105813,0.74033481,2683.5,2683.2,0.81779123]
[1643822106064,0.74036002,2683.4,2683.2,0.81779123]
[1643822106263,0.19488277,2683.7,2683.3,0.81779123]
[1643822106465,0.19488277,2683.7,2683.1,0.00693517]
[1643822106466,1.04036233,2683.6,2683.1,0.00693517]
[1643822106665,0.74036233,2683.5,2683.1,0.00454786]
[1643822107562,0.74036233,2683.5,2683.1,0.00497561]
[1643822107763,0.74036233,2683.5,2683.2,0.81796664]
[1643822108262,0.74036233,2683.5,2683.1,0.00497561]
[1643822108462,0.74036233,2683.5,2683.2,0.80959928]
[1643822108664,0.74036233,2683.5,2682.8,0.84524928]
[1643822108863,2.42702185,2683.4,2683.1,0.00497566]
[1643822109064,0.74036233,2683.3,2683.1,0.00497566]
[1643822109464,6.55901797,2683.2,2683.1,0.00497566]
[1643822109666,7.25471948,2683.2,2683.1,0.00497566]
[1643822109924,7.44526147,2683.2,2683.1,0.00497566]
[1643822110121,8.28904745,2683.2,2683.1,0.00496101]
[1643822110320,7.44526147,2683.2,2683.1,0.00496101]
[1643822111021,7.44526147,2683.2,2682.8,0.00238731]
[1643822111223,0.74036233,2683.1,2683.0,0.0045026]
[1643822111420,4.02080852,2683.1,2683.0,0.0045026]
[1643822112528,0.9323644,2683.0,2682.9,0.00450267]
[1643822112722,6.46145373,2683.0,2682.9,0.00450267]
[1643822112922,6.76145373,2683.0,2682.9,0.00450267]
[1643822113325,6.76145373,2683.0,2682.2,0.00238731]
[1643822113326,0.3,2682.9,2682.2,0.00238731]
[1643822113560,3.14873402,2682.8,2682.2,0.82005648]
[1643822113759,1.04036233,2682.7,2682.4,0.01808412]
[1643822113958,1.04036233,2682.7,2682.5,0.81766917]
[1643822113959,0.74036233,2682.6,2682.5,0.81766917]
[1643822114559,0.9139767,2682.6,2682.5,0.81766917]
[1643822114758,1.30967821,2682.6,2682.4,0.00497911]
[1643822114959,0.96501739,2682.6,2682.5,0.81766917]
[1643822115164,1.70640662,2682.6,2682.5,0.81766917]
[1643822116262,1.70545636,2682.6,2682.4,0.00497911]
[1643822116463,0.96406713,2682.6,2682.5,0.81766917]
[1643822116662,1.71102744,2682.6,2682.5,0.81766917]
[1643822117812,1.66102744,2682.6,2682.5,0.81766917]
[1643822124923,1.66102744,2682.6,2682.5,0.72602288]
[1643822125123,1.66102744,2682.6,2682.5,0.72604641]
[1643822125530,1.66102744,2682.6,2682.2,0.72843372]
[1643822125728,1.66102744,2682.6,2682.4,0.00496333]
[1643822125729,0.74696031,2682.5,2682.4,0.00496333]
[1643822125924,0.74696031,2682.5,2682.4,0.73100974]
[1643822126224,1.53836333,2682.5,2682.4,0.73100974]
[1643822126724,1.53836333,2682.5,2682.4,0.72604641]
[1643822127623,1.53836333,2682.5,2682.3,0.00496341]
[1643822127826,1.09140302,2682.5,2682.3,0.00496341]
[1643822128026,1.07719303,2682.4,2682.3,5.744e-05]
[1643822128225,1.07719303,2682.4,2682.3,0.00496347]
[1643822129060,1.07719303,2682.4,2681.8,0.00238731]
[1643822129260,0.77719303,2682.3,2681.8,0.00238731]
[1643822129463,0.77719303,2682.3,2681.8,0.76672473]
[1643822129660,0.77719303,2682.3,2681.9,0.76433742]
[1643822129862,0.77719303,2682.3,2681.5,0.00238731]
[1643822130060,2.40841665,2682.2,2681.5,0.00238731]
[1643822130262,0.1658099,2682.0,2681.5,0.00238731]
[1643822130461,0.1658099,2682.0,2681.5,0.7666644]
[1643822130662,1.6868,2682.4,2681.6,0.00238731]
[1643822130663,1.5004,2682.4,2681.6,0.00238731]
[1643822130860,1.5004,2682.4,2681.6,0.18878731]
[1643822130861,0.79415765,2682.3,2681.6,0.18878731]
[1643822131065,0.79415765,2682.3,2681.7,0.76427709]
[1643822131266,0.79415765,2682.3,2681.7,0.7666644]
[1643822131462,0.79140302,2682.0,2681.8,0.76427709]
[1643822131662,0.14523136,2681.9,2681.8,0.76674728]
[1643822132064,0.14523136,2681.9,2681.8,0.00247019]
[1643822132513,0.14523136,2681.9,2681.8,0.76674728]
[1643822132717,0.14523136,2681.9,2681.8,0.76427709]
[1643822132915,0.14523136,2681.9,2681.8,3.01427709]
[1643822133718,0.14523136,2681.9,2681.8,0.76427709]
[1643822136759,0.93663438,2681.9,2681.8,0.76427709]
[1643822138568,0.43064856,2681.9,2681.8,0.76427709]
[1643822139161,0.59856093,2681.9,2681.8,0.76427709]
[1643822140319,0.59856093,2681.9,2681.7,0.00536434]
[1643822141119,0.59856093,2681.9,2681.5,0.00060997]
[1643822141316,0.59856093,2681.9,2681.5,0.70414851]
[1643822141523,0.59856093,2681.9,2681.7,0.00536439]
[1643822141718,0.16791237,2681.9,2681.7,0.00536439]
[1643822142117,0.43064856,2681.8,2681.7,0.00536439]
[1643822142318,0.43064856,2681.8,2681.7,0.70259414]
[1643822142517,0.43064856,2681.8,2681.7,0.50285163]
[1643822143667,0.43064856,2681.8,2681.7,1.03448724]
[1643822143871,0.43064856,2681.8,2681.7,4.03448724]
[1643822144072,0.43064856,2681.8,2681.7,4.0135729]
[1643822144866,0.43064856,2681.8,2681.7,4.1999729]
[1643822145966,1.3262,2682.7,2681.8,4.65]
[1643822146169,0.1864,2682.8,2682.0,0.01279228]
[1643822146367,3.9803,2683.0,2682.1,0.75487464]
[1643822146569,0.19127543,2683.1,2682.2,3.45244978]
[1643822146772,0.00487543,2683.1,2682.3,1.74604928]
[1643822146967,0.00487543,2683.1,2682.9,0.79519289]
[1643822147616,0.00975167,2683.1,2682.8,0.537]
[1643822147819,0.00487624,2683.1,2682.8,0.537]
[1643822148618,0.00492353,2683.1,2682.8,0.537]
[1643822148821,0.00492353,2683.1,2682.9,0.69596553]
[1643822149519,0.1862,2683.5,2682.8,0.537]
[1643822149721,0.00492357,2683.1,2682.8,0.537]
[1643822150721,0.1862,2683.5,2682.8,0.537]
[1643822150722,0.16786774,2683.0,2682.8,0.537]
[1643822151165,0.16786774,2683.0,2682.6,0.94181373]
[1643822151666,0.16786774,2683.0,2682.6,1.87395223]
[1643822151667,0.0214386,2683.0,2682.6,1.87395223]
[1643822151865,0.1862,2683.5,2682.6,1.87395223]
[1643822152262,0.00535635,2683.1,2682.6,1.87395223]
[1643822152764,0.00535635,2683.1,2682.6,2.80608223]
[1643822153163,0.18534103,2683.2,2682.6,2.80608223]
[1643822153363,0.0053564,2683.1,2682.6,0.9321385]
[1643822153668,0.0053564,2683.1,2682.5,2.5873]
[1643822153669,0.0053564,2683.1,2682.5,0.537]
[1643822154470,0.18534103,2683.2,2682.4,1.8641818]
[1643822154663,0.00535635,2683.1,2682.6,0.94694107]
[1643822155109,0.1909963,2682.7,2682.3,0.1862]
[1643822155410,0.00535635,2683.1,2682.2,0.1915583]
[1643822155609,0.70150327,2683.2,2682.2,0.1862]
[1643822155809,0.70150327,2683.2,2682.2,1.12374836]
[1643822155810,0.0053564,2683.1,2682.2,1.12374836]
[1643822156010,0.0053564,2683.1,2682.3,0.72301]
[1643822156209,0.0053564,2683.1,2682.4,0.1862]
[1643822156410,0.0053564,2683.1,2682.5,2.4011799]
[1643822156610,0.0053564,2683.1,2682.6,0.4862]
[1643822156809,4.49250327,2683.6,2682.7,0.537]
[1643822157209,0.00535629,2683.1,2683.0,0.82041232]
[1643822157409,0.00535629,2683.1,2683.0,1.35741232]
[1643822157708,0.00535629,2683.1,2683.0,0.537]
[1643822158112,0.00535629,2683.1,2682.6,3.7280108]
[1643822158311,0.00535654,2683.2,2682.7,0.537]
[1643822158761,0.00535654,2683.2,2682.7,0.87887886]
[1643822159162,0.85845873,2683.5,2682.7,0.87887886]
[1643822159163,0.70150327,2683.5,2682.7,0.87887886]
[1643822159363,0.00501074,2683.1,2682.7,0.87887886]
[1643822160364,0.17035667,2683.5,2682.7,0.87887886]
[1643822160563,0.00501069,2683.1,2682.7,0.87887886]
[1643822161569,4.49250327,2683.6,2682.7,1.81090886]
[1643822161570,0.88770327,2683.6,2682.7,1.81090886]
[1643822161766,0.00501069,2683.1,2682.8,4.08248021]
[1643822161966,0.00501069,2683.1,2682.8,1.67526632]
[1643822162323,0.00501069,2683.1,2682.8,1.65519]
[1643822162710,0.15797362,2683.6,2682.8,1.65519]
[1643822162911,0.00507256,2683.1,2682.8,1.65519]
[1643822163911,0.85947689,2683.6,2682.8,1.65519]
[1643822164111,0.00507256,2683.1,2682.8,1.11819]
[1643822164311,0.88959169,2683.0,2682.8,1.11819]
[1643822165311,0.88959169,2682.9,2682.8,1.11819]
[1643822165512,0.88959169,2683.0,2682.8,4.46819]
[1643822165712,0.88959169,2683.0,2682.8,4.28199]
[1643822166564,0.00535645,2683.1,2682.7,0.87887886]